fUSD/lending_fUSD_20250414
["ID","MTS","AMOUNT","RATE_DAILY","PERIOD"]
[357964236,1744623046767,-11174.25201968,0.000199,2]
[357964237,1744623046776,-1760.46444872,0.000199,2]
[357964238,1744623046785,-375.23358628,0.000199,2]
[357964239,1744623046794,-12500.0,0.000199,2]
[357964240,1744623046804,-990.55566107,0.000199,2]
[357964241,1744623046814,-203.61373272,0.000199,2]
[357964242,1744623046823,-674.38278377,0.000199,2]
[357964243,1744623046833,-500.0,0.00019973,2]
[357964244,1744623046842,-504.0037658,0.00019973,2]
[357964245,1744623046851,-501.49922872,0.00019973,2]
[357964246,1744623046861,-500.0,0.00019973,2]
[357964247,1744623046871,-360.26739713,0.00019973,2]
[357964248,1744623046880,-503.66283739,0.00019973,2]
[357964249,1744623046889,-500.0,0.00019973,2]
[357964250,1744623046899,-500.0,0.00019973,2]
[357964251,1744623046908,-500.0,0.00019985,2]
[357964252,1744623046917,-500.0,0.00019985,2]
[357964253,1744623046927,-474.5,0.00019985,2]
[357964254,1744623046940,-217744.9219078,0.00019986,2]
[357964255,1744623046953,-10627.5200719,0.00019986,2]
[357964256,1744623046968,-500.0,0.00019999,2]
[357964257,1744623046982,-500.0,0.00019999,2]
[357964258,1744623046993,-500.0,0.00019999,2]
[357964259,1744623047005,-500.0,0.00019999,2]
[357964260,1744623047019,-500.0,0.00019999,2]
[357964261,1744623047033,-500.0,0.00019999,2]
[357964262,1744623047046,-355.18,0.00019999,2]
[357964263,1744623047061,-759.0,0.0002,2]
[357964264,1744623047077,-95387.46005604,0.0002,2]
[357964265,1744623047089,-235.43885866,0.0002,2]
[357964266,1744623047101,-512.39021904,0.0002,2]
[357964267,1744623047114,-889112.69703529,0.0002,2]
[357964268,1744623047135,-76110.54186594,0.0002,2]
[357964269,1744623047152,-20254.98337322,0.0002,2]
[357964270,1744623047879,-624390.52879148,0.0002,2]
[357964271,1744623047891,-188156.14683351,0.0002,2]
[357964272,1744623047903,-150.0,0.0002,2]
[357964273,1744623047915,-150.0,0.0002,2]
[357964274,1744623047926,-150.0,0.0002,2]
[357964275,1744623047938,-150.0,0.0002,2]
[357964276,1744623047949,-566.90745885,0.0002,2]
[357964277,1744623047960,-860.87285334,0.0002,2]
[357964278,1744623047972,-7743.3943957,0.0002,2]
[357964279,1744623047983,-983.01717013,0.0002,2]
[357964280,1744623047995,-311572.31505884,0.0002,2]
[357964281,1744623095595,1000.0,0.00025,30]
[357964282,1744623127795,-500.0,0.00019178,2]
[357964283,1744623127819,-500.0,0.00019178,2]
[357964284,1744623127842,-500.0,0.00019178,2]
[357964285,1744623127874,-508.65652607,0.00019178,2]
[357964286,1744623127903,-840.65,0.00019178,2]
[357964287,1744623127928,-500.0,0.00019178,2]
[357964288,1744623127953,-500.0,0.00019178,2]
[357964289,1744623127980,-500.0,0.00019178,2]
[357964290,1744623128007,-377.48383175,0.00019178,2]
[357964291,1744623128032,-500.0,0.00019178,2]
[357964292,1744623128057,-500.0,0.00019178,2]
[357964293,1744623128082,-213.03,0.00019178,2]
[357964294,1744623128110,-500.0,0.00019178,2]
[357964295,1744623128135,-297.34,0.00019178,2]
[357964296,1744623128158,-500.0,0.00019178,2]
[357964297,1744623128184,-637.17641503,0.00019178,2]
[357964298,1744623128208,-500.0,0.00019178,2]
[357964299,1744623128233,-500.0,0.00019178,2]
[357964300,1744623128256,-354.93712285,0.00019178,2]
[357964301,1744623128279,-500.0,0.00019178,2]
[357964302,1744623128310,-500.0,0.00019178,2]
[357964303,1744623128334,-500.0,0.00019178,2]
[357964304,1744623128359,-770.7261043,0.00019178,2]
[357964305,1744623362691,561.3,0.00017112,2]
[357964306,1744623670872,190.0,0.0002,3]
[357964307,1744624127604,266.5,0.000265,120]
[357964308,1744624178370,516.02014431,0.00025,120]
[357964311,1744624232424,-656.62,0.00018598,2]
[357964312,1744624232434,-250.0,0.00018627,2]
[357964313,1744624232444,-300.0,0.00018656,2]
[357964314,1744624232456,-300.0,0.00018656,2]
[357964315,1744624232466,-6629.22567362,0.00018657,2]
[357964347,1744624238358,-388.47493803,0.00018657,2]
[357964348,1744624238579,-1872.5008,0.00018657,2]
[357964349,1744624238592,-15009.79858835,0.00018657,2]
[357964350,1744624238603,-250.0,0.00018683,2]
[357964351,1744624238613,-217.44,0.00018932,2]
[357964352,1744624238624,-250.0,0.00019,2]
[357964353,1744624238633,-18870.2486624,0.00019,2]
[357964354,1744624238643,-539.50622707,0.00019078,2]
[357964355,1744624238653,-156.33923442,0.00019078,2]
[357964356,1744624238663,-344.9839,0.00019078,2]
[357964357,1744624238672,-190.0,0.000191,2]
[357964358,1744624238682,-190.47,0.000191,2]
[357964360,1744624238692,-983.47,0.00019168,2]
[357964362,1744624238702,-539.50622701,0.00019169,2]
[357964363,1744624238711,-500.0,0.00019173,2]
[357964364,1744624238721,-500.0,0.00019173,2]
[357964365,1744624238731,-383.96168975,0.00019177,2]
[357964366,1744624238740,-500.0,0.00019178,2]
[357964368,1744624238750,-629.63,0.00019178,2]
[357964370,1744624238759,-500.0,0.00019178,2]
[357964372,1744624238769,-531.19766003,0.00019178,2]
[357964373,1744624238779,-500.0,0.00019178,2]
[357964374,1744624238789,-500.0,0.00019178,2]
[357964375,1744624238799,-500.0,0.00019178,2]
[357964376,1744624238810,-500.0,0.00019178,2]
[357964377,1744624238820,-500.0,0.00019178,2]
[357964378,1744624238830,-500.0,0.00019178,2]
[357964379,1744624238840,-500.0,0.00019178,2]
[357964380,1744624238849,-527.14851133,0.00019178,2]
[357964381,1744624238857,-500.0,0.00019178,2]
[357964382,1744624238867,-500.0,0.00019178,2]
[357964383,1744624238876,-500.0,0.00019178,2]
[357964384,1744624238884,-500.0,0.00019178,2]
[357964385,1744624238893,-500.0,0.00019178,2]
[357964386,1744624238902,-500.0,0.00019178,2]
[357964387,1744624238911,-500.0,0.00019178,2]
[357964388,1744624238921,-500.0,0.00019178,2]
[357964389,1744624238931,-500.0,0.00019178,2]
[357964390,1744624238940,-510.25170695,0.00019178,2]
[357964391,1744624238948,-500.0,0.00019178,2]
[357964392,1744624238958,-550.53,0.00019178,2]
[357964393,1744624238966,-500.0,0.00019178,2]
[357964394,1744624238975,-500.0,0.00019178,2]
[357964395,1744624238984,-500.0,0.00019178,2]
[357964396,1744624238994,-500.0,0.00019178,2]
[357964397,1744624239004,-500.0,0.00019178,2]
[357964398,1744624239014,-500.0,0.00019178,2]
[357964399,1744624239024,-388.73582529,0.00019178,2]
[357964400,1744624239034,-500.0,0.00019178,2]
[357964401,1744624239044,-594.51545208,0.00019178,2]
[357964402,1744624239054,-500.0,0.00019178,2]
[357964403,1744624239063,-500.0,0.00019178,2]
[357964404,1744624239073,-500.0,0.00019178,2]
[357964405,1744624239081,-500.0,0.00019178,2]
[357964406,1744624239091,-501.21139511,0.00019178,2]
[357964407,1744624239100,-500.0,0.00019178,2]
[357964408,1744624239110,-500.0,0.00019178,2]
[357964409,1744624239121,-500.0,0.00019178,2]
[357964410,1744624239130,-500.0,0.00019178,2]
[357964411,1744624239140,-500.0,0.00019178,2]
[357964412,1744624239151,-500.0,0.00019178,2]
[357964413,1744624239160,-500.0,0.00019178,2]
[357964414,1744624239170,-500.0,0.00019178,2]
[357964415,1744624239179,-506.42631681,0.00019178,2]
[357964416,1744624239189,-605.26242689,0.00019178,2]
[357964417,1744624239199,-500.0,0.00019178,2]
[357964418,1744624239209,-500.0,0.00019178,2]
[357964419,1744624239219,-500.0,0.00019178,2]
[357964420,1744624239228,-500.0,0.00019178,2]
[357964421,1744624239237,-500.0,0.00019178,2]
[357964422,1744624239247,-505.71519687,0.00019178,2]
[357964423,1744624239256,-500.0,0.00019178,2]
[357964424,1744624239266,-500.0,0.00019178,2]
[357964425,1744624239276,-500.0,0.00019178,2]
[357964426,1744624239285,-500.0,0.00019178,2]
[357964427,1744624239295,-500.0,0.00019178,2]
[357964428,1744624239306,-500.0,0.00019178,2]
[357964429,1744624239315,-150.0,0.00019178,2]
[357964430,1744624239326,-500.0,0.00019178,2]
[357964431,1744624239335,-500.0,0.00019178,2]
[357964432,1744624239346,-500.0,0.00019178,2]
[357964433,1744624239356,-500.0,0.00019178,2]
[357964434,1744624239365,-519.21908451,0.00019178,2]
[357964435,1744624239375,-390.72571515,0.00019178,2]
[357964436,1744624239384,-500.0,0.00019178,2]
[357964437,1744624239393,-500.0,0.00019178,2]
[357964438,1744624239403,-319.60187327,0.00019178,2]
[357964439,1744624239413,-500.0,0.00019178,2]
[357964440,1744624239422,-500.0,0.00019178,2]
[357964441,1744624239431,-500.0,0.00019178,2]
[357964442,1744624239441,-500.0,0.00019178,2]
[357964443,1744624239450,-500.0,0.00019178,2]
[357964444,1744624239464,-500.0,0.00019178,2]
[357964445,1744624239474,-500.0,0.00019178,2]
[357964446,1744624239483,-500.0,0.00019178,2]
[357964447,1744624239492,-500.0,0.00019178,2]
[357964448,1744624239503,-500.0,0.00019178,2]
[357964449,1744624239513,-500.0,0.00019178,2]
[357964450,1744624239523,-153.13706151,0.00019178,2]
[357964451,1744624239532,-500.0,0.00019178,2]
[357964452,1744624239542,-500.0,0.00019178,2]
[357964453,1744624239551,-504.64343301,0.00019178,2]
[357964454,1744624239561,-500.0,0.00019178,2]
[357964455,1744624239571,-500.0,0.00019178,2]
[357964456,1744624239580,-500.0,0.00019178,2]
[357964457,1744624239589,-500.0,0.00019178,2]
[357964458,1744624239599,-500.0,0.00019178,2]
[357964459,1744624239609,-500.0,0.00019178,2]
[357964460,1744624239619,-500.0,0.00019178,2]
[357964461,1744624239629,-500.0,0.00019178,2]
[357964462,1744624239639,-510.45,0.00019178,2]
[357964463,1744624239648,-500.0,0.00019178,2]
[357964464,1744624239659,-606.22,0.00019178,2]
[357964465,1744624239668,-500.0,0.00019178,2]
[357964466,1744624239678,-500.0,0.00019178,2]
[357964467,1744624239688,-500.0,0.00019178,2]
[357964468,1744624239698,-500.0,0.00019178,2]
[357964469,1744624239708,-500.0,0.00019178,2]
[357964470,1744624239718,-500.0,0.00019178,2]
[357964471,1744624239727,-500.0,0.00019178,2]
[357964472,1744624239737,-500.0,0.00019178,2]
[357964473,1744624239746,-406.56,0.00019178,2]
[357964474,1744624239757,-500.0,0.00019178,2]
[357964475,1744624239767,-500.0,0.00019178,2]
[357964476,1744624239777,-500.0,0.00019178,2]
[357964477,1744624239788,-486.32,0.00019178,2]
[357964478,1744624239799,-500.0,0.00019178,2]
[357964479,1744624239809,-550.9226033,0.00019178,2]
[357964480,1744624239819,-649.62396354,0.00019178,2]
[357964481,1744624239828,-500.0,0.00019178,2]
[357964482,1744624239838,-500.0,0.00019178,2]
[357964483,1744624239848,-513.26885488,0.00019178,2]
[357964484,1744624239858,-500.0,0.00019178,2]
[357964485,1744624239868,-529.82,0.00019178,2]
[357964486,1744624239878,-500.0,0.00019178,2]
[357964487,1744624239888,-500.53,0.00019178,2]
[357964488,1744624239898,-500.0,0.00019178,2]
[357964489,1744624239907,-500.0,0.00019178,2]
[357964490,1744624239917,-500.0,0.00019178,2]
[357964491,1744624239927,-500.0,0.00019178,2]
[357964492,1744624239939,-561.19,0.00019178,2]
[357964493,1744624239948,-500.0,0.00019178,2]
[357964494,1744624239957,-500.0,0.00019178,2]
[357964495,1744624239967,-500.0,0.00019178,2]
[357964496,1744624239976,-500.0,0.00019178,2]
[357964497,1744624239985,-500.0,0.00019178,2]
[357964498,1744624239995,-500.0,0.00019178,2]
[357964499,1744624240005,-517.49229586,0.00019178,2]
[357964500,1744624240015,-500.0,0.00019178,2]
[357964501,1744624240025,-520.17470747,0.00019178,2]
[357964502,1744624240035,-500.0,0.00019178,2]
[357964503,1744624240044,-500.0,0.00019178,2]
[357964504,1744624240054,-500.0,0.00019178,2]
[357964505,1744624240064,-500.0,0.00019178,2]
[357964506,1744624240073,-500.0,0.00019178,2]
[357964507,1744624240082,-500.0,0.00019178,2]
[357964508,1744624240092,-500.0,0.00019178,2]
[357964509,1744624240102,-500.0,0.00019178,2]
[357964510,1744624240111,-500.0,0.00019178,2]
[357964511,1744624240121,-552.98041173,0.00019178,2]
[357964512,1744624240130,-500.0,0.00019178,2]
[357964513,1744624240139,-500.0,0.00019178,2]
[357964514,1744624240149,-500.0,0.00019178,2]
[357964515,1744624240159,-300.0,0.00019178,2]
[357964516,1744624240169,-500.0,0.00019178,2]
[357964517,1744624240179,-500.0,0.00019178,2]
[357964518,1744624240188,-561.37,0.00019178,2]
[357964519,1744624240198,-500.0,0.00019178,2]
[357964520,1744624240208,-500.0,0.00019178,2]
[357964521,1744624240218,-500.0,0.00019178,2]
[357964522,1744624240227,-500.0,0.00019178,2]
[357964523,1744624240237,-523.94,0.00019178,2]
[357964524,1744624240247,-500.0,0.00019178,2]
[357964525,1744624240256,-500.0,0.00019178,2]
[357964526,1744624240266,-500.0,0.00019178,2]
[357964527,1744624240276,-500.0,0.00019178,2]
[357964528,1744624240286,-500.0,0.00019178,2]
[357964529,1744624240295,-500.0,0.00019178,2]
[357964530,1744624240306,-500.0,0.00019178,2]
[357964531,1744624240315,-617.65,0.00019178,2]
[357964532,1744624240326,-500.0,0.00019178,2]
[357964533,1744624240336,-257.91465907,0.00019178,2]
[357964534,1744624240345,-500.0,0.00019178,2]
[357964535,1744624240355,-500.0,0.00019178,2]
[357964536,1744624240365,-574.45,0.00019178,2]
[357964537,1744624240375,-500.0,0.00019178,2]
[357964538,1744624240384,-500.0,0.00019178,2]
[357964539,1744624240394,-500.0,0.00019178,2]
[357964540,1744624240403,-972.68,0.00019178,2]
[357964541,1744624240413,-560.7186956,0.00019178,2]
[357964542,1744624240423,-500.0,0.00019178,2]
[357964543,1744624240432,-519.51,0.00019178,2]
[357964544,1744624240441,-500.0,0.00019178,2]
[357964545,1744624240451,-500.0,0.00019178,2]
[357964546,1744624240464,-500.0,0.00019178,2]
[357964547,1744624240473,-500.0,0.00019178,2]
[357964548,1744624240483,-500.0,0.00019178,2]
[357964549,1744624240492,-500.0,0.00019178,2]
[357964550,1744624240503,-500.0,0.00019178,2]
[357964551,1744624240512,-534.02163594,0.00019178,2]
[357964552,1744624240522,-500.0,0.00019178,2]
[357964553,1744624240531,-500.0,0.00019178,2]
[357964554,1744624240542,-500.0,0.00019178,2]
[357964555,1744624240553,-500.0,0.00019178,2]
[357964556,1744624240562,-500.0,0.00019178,2]
[357964557,1744624240572,-500.0,0.00019178,2]
[357964558,1744624240581,-654.36,0.00019178,2]
[357964559,1744624240591,-249.78650629,0.00019178,2]
[357964560,1744624240601,-551.97956989,0.00019178,2]
[357964561,1744624240610,-500.0,0.00019178,2]
[357964562,1744624240621,-500.0,0.00019178,2]
[357964563,1744624240631,-500.0,0.00019178,2]
[357964564,1744624240640,-500.0,0.00019178,2]
[357964565,1744624240650,-500.0,0.00019178,2]
[357964566,1744624240660,-500.0,0.00019178,2]
[357964567,1744624240669,-500.0,0.00019178,2]
[357964568,1744624240679,-500.0,0.00019178,2]
[357964569,1744624240689,-500.0,0.00019178,2]
[357964570,1744624240699,-614.59,0.00019178,2]
[357964571,1744624240708,-500.0,0.00019178,2]
[357964572,1744624240718,-500.0,0.00019178,2]
[357964573,1744624240728,-500.0,0.00019178,2]
[357964574,1744624240738,-500.0,0.00019178,2]
[357964575,1744624240747,-500.0,0.00019178,2]
[357964576,1744624240757,-500.0,0.00019178,2]
[357964577,1744624240767,-500.0,0.00019178,2]
[357964578,1744624240777,-500.0,0.00019178,2]
[357964579,1744624240787,-500.0,0.00019178,2]
[357964580,1744624240797,-500.0,0.00019178,2]
[357964581,1744624240806,-500.0,0.00019178,2]
[357964582,1744624240816,-500.0,0.00019178,2]
[357964584,1744624240825,-500.0,0.00019178,2]
[357964585,1744624240835,-500.0,0.00019178,2]
[357964587,1744624240845,-202.05610177,0.00019178,2]
[357964589,1744624240855,-500.0,0.00019178,2]
[357964590,1744624240866,-500.0,0.00019178,2]
[357964591,1744624240876,-500.0,0.00019178,2]
[357964593,1744624240885,-500.0,0.00019178,2]
[357964594,1744624240895,-500.0,0.00019178,2]
[357964596,1744624240904,-500.0,0.00019178,2]
[357964597,1744624240914,-508.95217236,0.00019178,2]
[357964598,1744624240924,-500.0,0.00019178,2]
[357964599,1744624240935,-236.01,0.00019178,2]
[357964600,1744624240945,-551.73,0.00019178,2]
[357964601,1744624240956,-500.0,0.00019178,2]
[357964602,1744624240966,-537.84263868,0.00019178,2]
[357964603,1744624240976,-500.0,0.00019178,2]
[357964604,1744624240986,-500.0,0.00019178,2]
[357964605,1744624240996,-500.0,0.00019178,2]
[357964606,1744624241006,-601.37,0.00019178,2]
[357964607,1744624241015,-500.0,0.00019178,2]
[357964608,1744624241024,-500.0,0.00019178,2]
[357964609,1744624241034,-500.0,0.00019178,2]
[357964610,1744624241043,-500.0,0.00019178,2]
[357964611,1744624241052,-500.0,0.00019178,2]
[357964612,1744624241063,-500.0,0.00019178,2]
[357964613,1744624241073,-500.0,0.00019178,2]
[357964614,1744624241082,-530.88247775,0.00019178,2]
[357964615,1744624241092,-476.83,0.00019178,2]
[357964616,1744624241102,-500.0,0.00019178,2]
[357964617,1744624241111,-500.0,0.00019178,2]
[357964618,1744624241121,-520.41709685,0.00019178,2]
[357964619,1744624241131,-500.0,0.00019178,2]
[357964620,1744624241140,-500.0,0.00019178,2]
[357964621,1744624241150,-502.09320001,0.00019178,2]
[357964622,1744624241159,-156.34320295,0.00019178,2]
[357964623,1744624241168,-577.31809717,0.00019178,2]
[357964624,1744624241178,-500.0,0.00019178,2]
[357964625,1744624241187,-500.0,0.00019178,2]
[357964626,1744624241197,-500.0,0.00019178,2]
[357964627,1744624241206,-513.395965,0.00019178,2]
[357964628,1744624241218,-500.0,0.00019178,2]
[357964629,1744624241227,-244.63,0.00019178,2]
[357964630,1744624241237,-500.0,0.00019178,2]
[357964631,1744624241246,-500.0,0.00019178,2]
[357964632,1744624241255,-500.0,0.00019178,2]
[357964633,1744624241265,-525.00882563,0.00019178,2]
[357964634,1744624241275,-500.0,0.00019178,2]
[357964635,1744624241284,-503.87147587,0.00019178,2]
[357964636,1744624241294,-502.18362092,0.00019178,2]
[357964637,1744624241304,-500.0,0.00019178,2]
[357964638,1744624241314,-500.0,0.00019178,2]
[357964639,1744624241323,-503.53533221,0.00019178,2]
[357964640,1744624241333,-500.0,0.00019178,2]
[357964641,1744624241343,-500.0,0.00019178,2]
[357964642,1744624241353,-500.0,0.00019178,2]
[357964643,1744624241363,-500.0,0.00019178,2]
[357964644,1744624241372,-500.0,0.00019178,2]
[357964645,1744624241382,-500.0,0.00019178,2]
[357964646,1744624241391,-500.0,0.00019178,2]
[357964647,1744624241401,-511.4373419,0.00019178,2]
[357964648,1744624241410,-500.0,0.00019178,2]
[357964649,1744624241419,-500.0,0.00019178,2]
[357964650,1744624241428,-500.0,0.00019178,2]
[357964651,1744624241438,-500.0,0.00019178,2]
[357964652,1744624241447,-500.0,0.00019178,2]
[357964653,1744624241458,-513.89445482,0.00019178,2]
[357964654,1744624241468,-500.0,0.00019178,2]
[357964655,1744624241477,-500.0,0.00019178,2]
[357964656,1744624241487,-500.0,0.00019178,2]
[357964657,1744624241497,-500.0,0.00019178,2]
[357964658,1744624241506,-500.0,0.00019178,2]
[357964659,1744624241516,-500.0,0.00019178,2]
[357964660,1744624241525,-529.57043776,0.00019178,2]
[357964661,1744624241537,-500.0,0.00019178,2]
[357964662,1744624241546,-500.0,0.00019178,2]
[357964663,1744624241556,-490.0,0.00019178,2]
[357964664,1744624241567,-503.51876802,0.00019178,2]
[357964665,1744624241577,-500.0,0.00019178,2]
[357964666,1744624241586,-500.0,0.00019178,2]
[357964667,1744624241595,-380.35830251,0.00019178,2]
[357964668,1744624241605,-500.0,0.00019178,2]
[357964669,1744624241615,-500.0,0.00019178,2]
[357964670,1744624241625,-576.24131014,0.00019178,2]
[357964671,1744624241635,-504.36572827,0.00019178,2]
[357964672,1744624241645,-505.76951948,0.00019178,2]
[357964673,1744624241654,-500.0,0.00019178,2]
[357964674,1744624241663,-506.73964992,0.00019178,2]
[357964675,1744624241674,-500.0,0.00019178,2]
[357964676,1744624241684,-303.83257303,0.00019178,2]
[357964677,1744624241693,-500.0,0.00019178,2]
[357964678,1744624241703,-500.0,0.00019178,2]
[357964679,1744624241712,-507.41322393,0.00019178,2]
[357964680,1744624241722,-500.0,0.00019178,2]
[357964681,1744624241731,-500.0,0.00019178,2]
[357964682,1744624241741,-500.0,0.00019178,2]
[357964683,1744624241750,-500.0,0.00019178,2]
[357964684,1744624241759,-523.30088731,0.00019178,2]
[357964685,1744624241900,-500.0,0.00019178,2]
[357964686,1744624241934,-510.52,0.00019178,2]
[357964687,1744624241944,-500.0,0.00019178,2]
[357964688,1744624241953,-500.0,0.00019178,2]
[357964689,1744624241963,-500.0,0.00019178,2]
[357964690,1744624241972,-564.11142073,0.00019178,2]
[357964691,1744624241982,-626.89706412,0.00019178,2]
[357964692,1744624241991,-500.0,0.00019178,2]
[357964693,1744624242001,-607.62089549,0.00019178,2]
[357964694,1744624242011,-500.0,0.00019178,2]
[357964695,1744624242020,-500.0,0.00019178,2]
[357964696,1744624242030,-500.0,0.00019178,2]
[357964697,1744624242039,-500.0,0.00019178,2]
[357964698,1744624242048,-500.0,0.00019178,2]
[357964699,1744624242058,-500.0,0.00019178,2]
[357964700,1744624242067,-500.0,0.00019178,2]
[357964701,1744624242076,-500.0,0.00019178,2]
[357964702,1744624242085,-500.0,0.00019178,2]
[357964703,1744624242094,-500.0,0.00019178,2]
[357964704,1744624242103,-500.0,0.00019178,2]
[357964705,1744624242113,-500.0,0.00019178,2]
[357964706,1744624242123,-500.0,0.00019178,2]
[357964707,1744624242132,-500.0,0.00019178,2]
[357964708,1744624242141,-500.0,0.00019178,2]
[357964709,1744624242151,-500.0,0.00019178,2]
[357964710,1744624242160,-500.0,0.00019178,2]
[357964711,1744624242169,-500.0,0.00019178,2]
[357964712,1744624242179,-919.28,0.00019178,2]
[357964713,1744624242188,-500.0,0.00019178,2]
[357964714,1744624242197,-500.0,0.00019178,2]
[357964715,1744624242206,-525.71,0.00019178,2]
[357964716,1744624242215,-500.0,0.00019178,2]
[357964717,1744624242224,-32341.87,0.00019178,2]
[357964718,1744624242234,-500.0,0.00019178,2]
[357964719,1744624242244,-500.0,0.00019178,2]
[357964720,1744624242254,-500.0,0.00019178,2]
[357964721,1744624242263,-500.0,0.00019178,2]
[357964722,1744624242273,-500.0,0.00019178,2]
[357964723,1744624242283,-500.0,0.00019178,2]
[357964724,1744624242293,-1463.23,0.00019178,2]
[357964725,1744624242304,-500.0,0.00019178,2]
[357964726,1744624242314,-500.0,0.00019178,2]
[357964727,1744624242324,-500.0,0.00019178,2]
[357964728,1744624242334,-3924.12,0.00019178,2]
[357964729,1744624242343,-500.0,0.00019178,2]
[357964730,1744624242353,-500.0,0.00019178,2]
[357964731,1744624242363,-500.0,0.00019178,2]
[357964732,1744624242373,-500.0,0.00019178,2]
[357964733,1744624242382,-500.0,0.00019178,2]
[357964734,1744624242392,-524.14,0.00019178,2]
[357964735,1744624242402,-433.9582706,0.00019178,2]
[357964736,1744624242412,-537.02,0.00019178,2]
[357964737,1744624242421,-500.0,0.00019178,2]
[357964738,1744624242431,-500.0,0.00019178,2]
[357964739,1744624242440,-803.49,0.00019178,2]
[357964740,1744624242451,-500.0,0.00019178,2]
[357964741,1744624242466,-500.0,0.00019178,2]
[357964742,1744624242476,-500.0,0.00019178,2]
[357964743,1744624242486,-538.7290083,0.00019178,2]
[357964744,1744624242496,-500.0,0.00019178,2]
[357964745,1744624242506,-500.0,0.00019178,2]
[357964746,1744624242516,-500.0,0.00019178,2]
[357964747,1744624242525,-500.0,0.00019178,2]
[357964748,1744624242535,-500.0,0.00019178,2]
[357964749,1744624242545,-500.0,0.00019178,2]
[357964750,1744624242554,-500.0,0.00019178,2]
[357964751,1744624242564,-500.0,0.00019178,2]
[357964752,1744624242574,-500.0,0.00019178,2]
[357964753,1744624242583,-500.0,0.00019178,2]
[357964754,1744624242594,-627.07,0.00019178,2]
[357964755,1744624242605,-500.0,0.00019178,2]
[357964756,1744624242616,-500.0,0.00019178,2]
[357964757,1744624242627,-500.0,0.00019178,2]
[357964758,1744624242641,-500.0,0.00019178,2]
[357964759,1744624242651,-622.38005136,0.00019178,2]
[357964760,1744624242662,-500.0,0.00019178,2]
[357964761,1744624242673,-500.0,0.00019178,2]
[357964762,1744624242683,-500.0,0.00019178,2]
[357964763,1744624242694,-500.0,0.00019178,2]
[357964764,1744624242704,-500.0,0.00019178,2]
[357964765,1744624242714,-500.0,0.00019178,2]
[357964766,1744624242724,-500.0,0.00019178,2]
[357964767,1744624242734,-500.0,0.00019178,2]
[357964768,1744624242744,-500.0,0.00019178,2]
[357964769,1744624242754,-512.86312731,0.00019178,2]
[357964770,1744624242764,-500.0,0.00019178,2]
[357964771,1744624242774,-500.0,0.00019178,2]
[357964772,1744624242783,-500.0,0.00019178,2]
[357964773,1744624242793,-500.0,0.00019178,2]
[357964774,1744624242803,-500.0,0.00019178,2]
[357964775,1744624242813,-500.0,0.00019178,2]
[357964776,1744624242823,-151.0,0.00019178,2]
[357964777,1744624242833,-500.0,0.00019178,2]
[357964778,1744624242844,-500.0,0.00019178,2]